fUSD/lending_fUSD_20241227
["ID","MTS","AMOUNT","RATE_DAILY","PERIOD"]
[346785320,1735287005739,-500.0,0.00012658,2]
[346785321,1735287005768,-500.0,0.00012658,2]
[346785322,1735287005799,-500.0,0.00012658,2]
[346785323,1735287005830,-500.0,0.00012658,2]
[346785324,1735287005858,-563.18,0.00012658,2]
[346785325,1735287005887,-500.0,0.00012658,2]
[346785326,1735287005916,-500.0,0.00012658,2]
[346785327,1735287005944,-456.74211503,0.00012658,2]
[346785328,1735287005973,-500.0,0.00012658,2]
[346785329,1735287006001,-500.0,0.00012658,2]
[346785330,1735287006030,-500.0,0.00012658,2]
[346785331,1735287006058,-500.0,0.00012658,2]
[346785332,1735287006087,-500.0,0.00012658,2]
[346785333,1735287006115,-500.0,0.00012658,2]
[346785334,1735287006143,-218.67831585,0.00012658,2]
[346785335,1735287006176,-500.0,0.00012658,2]
[346785336,1735287006212,-500.0,0.00012658,2]
[346785337,1735287006241,-500.0,0.00012658,2]
[346785338,1735287006271,-623.53,0.00012658,2]
[346785339,1735287006303,-612.32601924,0.00012658,2]
[346785340,1735287006333,-500.0,0.00012658,2]
[346785341,1735287006366,-528.22,0.00012658,2]
[346785342,1735287006395,-500.0,0.00012658,2]
[346785343,1735287006425,-500.0,0.00012658,2]
[346785344,1735287006456,-500.0,0.00012658,2]
[346785345,1735287006485,-500.0,0.00012658,2]
[346785346,1735287006515,-500.0,0.00012658,2]
[346785347,1735287006544,-500.0,0.00012658,2]
[346785348,1735287006574,-500.0,0.00012658,2]
[346785349,1735287006602,-500.0,0.00012658,2]
[346785350,1735287006630,-503.43,0.00012658,2]
[346785351,1735287006657,-500.0,0.00012658,2]
[346785352,1735287006683,-500.0,0.00012658,2]
[346785353,1735287006710,-500.0,0.00012658,2]
[346785354,1735287006737,-500.0,0.00012658,2]
[346785355,1735287006764,-500.0,0.00012658,2]
[346785356,1735287006791,-500.0,0.00012658,2]
[346785357,1735287006820,-500.0,0.00012658,2]
[346785358,1735287006851,-500.0,0.00012658,2]
[346785359,1735287006878,-500.0,0.00012658,2]
[346785360,1735287006905,-500.0,0.00012658,2]
[346785361,1735287006932,-500.0,0.00012658,2]
[346785362,1735287006961,-500.0,0.00012658,2]
[346785363,1735287006988,-500.0,0.00012658,2]
[346785364,1735287007014,-500.0,0.00012658,2]
[346785365,1735287007041,-500.0,0.00012658,2]
[346785366,1735287007073,-500.0,0.00012658,2]
[346785367,1735287007103,-500.0,0.00012658,2]
[346785368,1735287007133,-500.0,0.00012658,2]
[346785369,1735287007166,-500.0,0.00012658,2]
[346785370,1735287007234,-500.0,0.00012658,2]
[346785371,1735287007266,-500.0,0.00012658,2]
[346785372,1735287007299,-500.0,0.00012658,2]
[346785373,1735287007331,-500.0,0.00012658,2]
[346785374,1735287007361,-439.6269787,0.00012658,2]
[346785375,1735287007390,-500.0,0.00012658,2]
[346785376,1735287007419,-500.0,0.00012658,2]
[346785377,1735287007448,-500.0,0.00012658,2]
[346785378,1735287007479,-500.0,0.00012658,2]
[346785379,1735287007509,-500.0,0.00012658,2]
[346785380,1735287007544,-500.0,0.00012658,2]
[346785381,1735287007587,-500.74353376,0.00012658,2]
[346785382,1735287007618,-500.0,0.00012658,2]
[346785383,1735287008078,-500.0,0.00012658,2]
[346785384,1735287008133,-500.0,0.00012658,2]
[346785385,1735287008159,-500.0,0.00012658,2]
[346785386,1735287008186,-500.0,0.00012658,2]
[346785387,1735287008212,-1207.59,0.00012658,2]
[346785388,1735287008237,-500.0,0.00012658,2]
[346785389,1735287008263,-500.0,0.00012658,2]
[346785390,1735287008288,-500.0,0.00012658,2]
[346785391,1735287008316,-500.0,0.00012658,2]
[346785392,1735287008341,-500.0,0.00012658,2]
[346785393,1735287008364,-500.0,0.00012658,2]
[346785394,1735287008389,-500.0,0.00012658,2]
[346785395,1735287008413,-500.0,0.00012658,2]
[346785396,1735287008439,-1642.98,0.00012658,2]
[346785397,1735287008463,-500.0,0.00012658,2]
[346785398,1735287008489,-500.0,0.00012658,2]
[346785399,1735287008513,-500.0,0.00012658,2]
[346785400,1735287008537,-500.0,0.00012658,2]
[346785401,1735287008564,-500.0,0.00012658,2]
[346785402,1735287008587,-500.0,0.00012658,2]
[346785403,1735287008610,-500.0,0.00012658,2]
[346785404,1735287008635,-1307.17,0.00012658,2]
[346785405,1735287008658,-500.0,0.00012658,2]
[346785406,1735287008683,-500.0,0.00012658,2]
[346785407,1735287008707,-500.0,0.00012658,2]
[346785408,1735287008730,-500.0,0.00012658,2]
[346785409,1735287008754,-500.0,0.00012658,2]
[346785410,1735287008779,-500.0,0.00012658,2]
[346785411,1735287008804,-500.0,0.00012658,2]
[346785412,1735287008829,-500.0,0.00012658,2]
[346785413,1735287008853,-500.0,0.00012658,2]
[346785414,1735287008878,-500.0,0.00012658,2]
[346785415,1735287008905,-500.0,0.00012658,2]
[346785416,1735287008932,-1552.17,0.00012658,2]
[346785417,1735287008956,-500.0,0.00012658,2]
[346785418,1735287008981,-500.0,0.00012658,2]
[346785419,1735287009006,-500.0,0.00012658,2]
[346785420,1735287009031,-500.0,0.00012658,2]
[346785421,1735287009060,-500.0,0.00012658,2]
[346785422,1735287009084,-500.0,0.00012658,2]
[346785423,1735287009109,-500.0,0.00012658,2]
[346785424,1735287009134,-500.0,0.00012658,2]
[346785425,1735287009160,-500.0,0.00012658,2]
[346785426,1735287009190,-500.0,0.00012658,2]
[346785427,1735287009216,-500.0,0.00012658,2]
[346785428,1735287009241,-631.48,0.00012658,2]
[346785429,1735287009267,-500.0,0.00012658,2]
[346785430,1735287009293,-500.0,0.00012658,2]
[346785431,1735287009322,-698.87,0.00012658,2]
[346785432,1735287009348,-500.0,0.00012658,2]
[346785433,1735287009376,-634.46,0.00012658,2]
[346785434,1735287009404,-500.0,0.00012658,2]
[346785435,1735287009431,-743.39,0.00012658,2]
[346785436,1735287009458,-584.12120506,0.00012658,2]
[346785437,1735287009483,-500.0,0.00012658,2]
[346785438,1735287009508,-500.0,0.00012658,2]
[346785439,1735287009533,-750.88,0.00012658,2]
[346785440,1735287009563,-955.48,0.00012658,2]
[346785441,1735287009588,-500.0,0.00012658,2]
[346785442,1735287009612,-500.0,0.00012658,2]
[346785443,1735287009636,-500.0,0.00012658,2]
[346785444,1735287009660,-504.31658423,0.00012658,2]
[346785445,1735287009684,-500.0,0.00012658,2]
[346785446,1735287009708,-697.13,0.00012658,2]
[346785447,1735287009733,-500.0,0.00012658,2]
[346785448,1735287009756,-500.0,0.00012658,2]
[346785449,1735287009780,-1120.57,0.00012658,2]
[346785450,1735287009806,-617.15107642,0.00012658,2]
[346785451,1735287009831,-500.0,0.00012658,2]
[346785452,1735287009855,-500.0,0.00012658,2]
[346785453,1735287009880,-500.0,0.00012658,2]
[346785454,1735287009904,-500.0,0.00012658,2]
[346785455,1735287009929,-505.11575725,0.00012658,2]
[346785456,1735287009954,-500.0,0.00012658,2]
[346785457,1735287009977,-500.0,0.00012658,2]
[346785458,1735287010001,-1293.91,0.00012658,2]
[346785459,1735287010025,-500.0,0.00012658,2]
[346785460,1735287010049,-500.0,0.00012658,2]
[346785461,1735287010076,-500.0,0.00012658,2]
[346785462,1735287010101,-500.0,0.00012658,2]
[346785463,1735287010127,-500.0,0.00012658,2]
[346785464,1735287010152,-500.0,0.00012658,2]
[346785465,1735287010179,-500.0,0.00012658,2]
[346785466,1735287010203,-500.0,0.00012658,2]
[346785467,1735287010226,-500.0,0.00012658,2]
[346785468,1735287010253,-653.56,0.00012658,2]
[346785469,1735287010279,-500.0,0.00012658,2]
[346785470,1735287010303,-661.66,0.00012658,2]
[346785471,1735287010330,-500.0,0.00012658,2]
[346785472,1735287010355,-235.11570376,0.00012658,2]
[346785473,1735287010379,-500.0,0.00012658,2]
[346785474,1735287010404,-500.0,0.00012658,2]
[346785475,1735287010430,-500.0,0.00012658,2]
[346785476,1735287010455,-914.36,0.00012658,2]
[346785477,1735287010479,-1311.26,0.00012658,2]
[346785478,1735287010504,-500.0,0.00012658,2]
[346785479,1735287010529,-500.0,0.00012658,2]
[346785480,1735287010553,-500.0,0.00012658,2]
[346785481,1735287010581,-500.0,0.00012658,2]
[346785482,1735287010605,-500.0,0.00012658,2]
[346785483,1735287010629,-1034.2,0.00012658,2]
[346785484,1735287010652,-500.26812003,0.00012658,2]
[346785485,1735287010675,-500.0,0.00012658,2]
[346785486,1735287010699,-500.0,0.00012658,2]
[346785487,1735287010721,-500.0,0.00012658,2]
[346785488,1735287010748,-500.0,0.00012658,2]
[346785489,1735287010771,-502.37729575,0.00012658,2]
[346785490,1735287010796,-697.93,0.00012658,2]
[346785491,1735287010822,-500.0,0.00012658,2]
[346785492,1735287010847,-611.16,0.00012658,2]
[346785493,1735287010870,-500.0,0.00012658,2]
[346785494,1735287010894,-1112.09,0.00012658,2]
[346785495,1735287010917,-500.0,0.00012658,2]
[346785496,1735287010941,-500.0,0.00012658,2]
[346785497,1735287010966,-500.0,0.00012658,2]
[346785498,1735287010990,-1062.89,0.00012658,2]
[346785499,1735287011013,-500.28582136,0.00012658,2]
[346785500,1735287011038,-703.57,0.00012658,2]
[346785501,1735287011066,-500.0,0.00012658,2]
[346785502,1735287011091,-500.0,0.00012658,2]
[346785503,1735287011117,-500.0,0.00012658,2]
[346785504,1735287011144,-500.0,0.00012658,2]
[346785505,1735287011169,-500.0,0.00012658,2]
[346785506,1735287011200,-693.6,0.00012658,2]
[346785507,1735287011227,-505.47386236,0.00012658,2]
[346785508,1735287011256,-500.0,0.00012658,2]
[346785509,1735287011283,-390.87736506,0.00012658,2]
[346785510,1735287011313,-500.0,0.00012658,2]
[346785511,1735287011346,-500.0,0.00012658,2]
[346785512,1735287011376,-500.0,0.00012658,2]
[346785513,1735287011409,-1004.51,0.00012658,2]
[346785514,1735287011441,-500.0,0.00012658,2]
[346785515,1735287011477,-500.0,0.00012658,2]
[346785516,1735287011502,-500.0,0.00012658,2]
[346785517,1735287011529,-500.0,0.00012658,2]
[346785518,1735287011554,-500.0,0.00012658,2]
[346785519,1735287011580,-643.97,0.00012658,2]
[346785520,1735287011621,-500.0,0.00012658,2]
[346785521,1735287011651,-500.0,0.00012658,2]
[346785522,1735287011677,-500.0,0.00012658,2]
[346785523,1735287011721,-500.0,0.00012658,2]
[346785524,1735287011747,-500.0,0.00012658,2]
[346785525,1735287011776,-625.13,0.00012658,2]
[346785526,1735287011803,-500.0,0.00012658,2]
[346785527,1735287011833,-500.0,0.00012658,2]
[346785528,1735287011870,-500.0,0.00012658,2]
[346785529,1735287011895,-500.0,0.00012658,2]
[346785530,1735287011919,-500.0,0.00012658,2]
[346785531,1735287011941,-618.74,0.00012658,2]
[346785532,1735287011967,-500.0,0.00012658,2]
[346785533,1735287011990,-500.0,0.00012658,2]
[346785534,1735287012014,-500.0,0.00012658,2]
[346785535,1735287012039,-500.0,0.00012658,2]
[346785536,1735287012300,-725.89,0.00012658,2]
[346785537,1735287012328,-500.0,0.00012658,2]
[346785538,1735287012353,-500.0,0.00012658,2]
[346785539,1735287012379,-500.0,0.00012658,2]
[346785540,1735287012405,-500.0,0.00012658,2]
[346785541,1735287012429,-500.0,0.00012658,2]
[346785542,1735287012453,-500.0,0.00012658,2]
[346785543,1735287012476,-500.0,0.00012658,2]
[346785544,1735287012499,-804.82,0.00012658,2]
[346785545,1735287012523,-500.0,0.00012658,2]
[346785546,1735287012548,-500.0,0.00012658,2]
[346785547,1735287012574,-500.0,0.00012658,2]
[346785548,1735287012598,-500.0,0.00012658,2]
[346785549,1735287012622,-500.0,0.00012658,2]
[346785550,1735287012646,-500.0,0.00012658,2]
[346785551,1735287012670,-500.0,0.00012658,2]
[346785552,1735287012694,-500.0,0.00012658,2]
[346785553,1735287012718,-500.0,0.00012658,2]
[346785554,1735287012743,-500.0,0.00012658,2]
[346785555,1735287012771,-500.0,0.00012658,2]
[346785556,1735287012797,-940.37,0.00012658,2]
[346785557,1735287012824,-500.0,0.00012658,2]
[346785558,1735287012850,-500.0,0.00012658,2]
[346785559,1735287012877,-893.86,0.00012658,2]
[346785560,1735287012900,-500.0,0.00012658,2]
[346785561,1735287012925,-500.0,0.00012658,2]
[346785562,1735287012949,-500.0,0.00012658,2]
[346785563,1735287012974,-500.0,0.00012658,2]
[346785564,1735287012997,-500.0,0.00012658,2]
[346785565,1735287013022,-500.0,0.00012658,2]
[346785566,1735287013045,-572.74632977,0.00012658,2]
[346785567,1735287013072,-609.41,0.00012658,2]
[346785568,1735287013097,-500.0,0.00012658,2]
[346785569,1735287013123,-546.76,0.00012658,2]
[346785570,1735287013149,-500.0,0.00012658,2]
[346785571,1735287013176,-500.0,0.00012658,2]
[346785572,1735287013202,-500.0,0.00012658,2]
[346785573,1735287013227,-500.0,0.00012658,2]
[346785574,1735287013253,-500.0,0.00012658,2]
[346785575,1735287013281,-500.0,0.00012658,2]
[346785576,1735287013329,-805.05,0.00012658,2]
[346785577,1735287013368,-500.0,0.00012658,2]
[346785578,1735287013396,-500.0,0.00012658,2]
[346785579,1735287013433,-500.0,0.00012658,2]
[346785580,1735287013460,-500.0,0.00012658,2]
[346785581,1735287013488,-500.0,0.00012658,2]
[346785582,1735287013514,-500.0,0.00012658,2]
[346785583,1735287013539,-500.0,0.00012658,2]
[346785584,1735287013566,-7612.9112169,0.00012658,2]
[346785596,1735287036059,-1000.0,0.00011731,2]
[346785597,1735287036069,-152.26,0.00011802,2]
[346785598,1735287036084,-10069.66274536,0.00011802,2]
[346785599,1735287036115,-609.86344662,0.00011802,2]
[346785600,1735287036127,-6128.57380802,0.00011802,2]
[346785601,1735287036137,-685.13,0.00011999,2]
[346785602,1735287036147,-500.0,0.00011999,2]
[346785603,1735287036156,-1777.3,0.00011999,2]
[346785604,1735287036166,-685.13,0.00012273,2]
[346785605,1735287036175,-500.0,0.00012273,2]
[346785606,1735287036187,-1777.3,0.00012273,2]
[346785607,1735287036200,-162.67889198,0.00012547,2]
[346785608,1735287036236,-522.45110802,0.00012547,2]
[346785609,1735287036246,-500.0,0.00012547,2]
[346785610,1735287036255,-1777.3,0.00012547,2]
[346785611,1735287036267,-5000.0,0.00012557,2]
[346785613,1735287036276,-571.55024237,0.00012557,2]
[346785614,1735287036285,-1158.15944762,0.00012557,2]
[346785705,1735287038105,-1501.26519847,0.00012557,2]
[346785706,1735287038118,-2772.55694123,0.00012557,2]
[346785707,1735287038128,-407.78536657,0.00012633,2]
[346785708,1735287038138,-2371.88,0.00012656,2]
[346785709,1735287038148,-3952.32,0.00012656,2]
[346785710,1735287038157,-2319.04,0.00012656,2]
[346785711,1735287038167,-4066.03,0.00012656,2]
[346785712,1735287038177,-2776.73,0.00012656,2]
[346785713,1735287038190,-500.0,0.00012656,2]
[346785714,1735287038200,-1154.19,0.00012656,2]
[346785715,1735287038211,-501.25417866,0.00012657,2]
[346785716,1735287038221,-500.0,0.00012657,2]
[346785717,1735287038231,-500.0,0.00012657,2]
[346785718,1735287038240,-500.0,0.00012657,2]
[346785719,1735287038250,-500.0,0.00012657,2]
[346785720,1735287038260,-514.70003316,0.00012657,2]
[346785721,1735287038269,-500.0,0.00012657,2]
[346785722,1735287038279,-602.38,0.00012657,2]
[346785723,1735287038289,-500.0,0.00012657,2]
[346785724,1735287038299,-622.59,0.00012657,2]
[346785725,1735287038309,-500.0,0.00012657,2]
[346785726,1735287038319,-505.43248983,0.00012657,2]
[346785727,1735287038333,-500.0,0.00012657,2]
[346785728,1735287038342,-500.0,0.00012657,2]
[346785729,1735287038353,-500.0,0.00012657,2]
[346785730,1735287038365,-500.0,0.00012657,2]
[346785731,1735287038375,-500.0,0.00012657,2]
[346785732,1735287038386,-500.0,0.00012657,2]
[346785733,1735287038396,-500.0,0.00012657,2]
[346785734,1735287038407,-500.0,0.00012657,2]
[346785735,1735287038417,-500.0,0.00012657,2]
[346785736,1735287038428,-500.0,0.00012657,2]
[346785737,1735287038439,-500.0,0.00012657,2]
[346785738,1735287038450,-447.53428486,0.00012657,2]
[346785739,1735287038460,-561.99,0.00012657,2]
[346785740,1735287038470,-527.25786671,0.00012657,2]
[346785742,1735287038479,-500.0,0.00012657,2]
[346785744,1735287038490,-314.78343976,0.00012657,2]
[346785746,1735287038499,-576.5409186,0.00012657,2]
[346785747,1735287038510,-500.0,0.00012657,2]
[346785748,1735287038520,-4671.69,0.00012657,2]
[346785749,1735287038530,-500.0,0.00012657,2]
[346785750,1735287038540,-529.02977927,0.00012657,2]
[346785751,1735287038551,-2943.21,0.00012657,2]
[346785752,1735287038561,-1487.5,0.00012657,2]
[346785753,1735287038571,-500.0,0.00012657,2]
[346785755,1735287038584,-500.0,0.00012657,2]
[346785757,1735287038595,-501.12500778,0.00012657,2]
[346785759,1735287038606,-500.0,0.00012657,2]
[346785761,1735287038615,-500.0,0.00012657,2]
[346785763,1735287038626,-536.52,0.00012657,2]
[346785765,1735287038636,-749.11,0.00012658,2]
[346785768,1735287038645,-500.0,0.00012658,2]
[346785770,1735287038655,-505.66,0.00012658,2]
[346785772,1735287038665,-773.84,0.00012658,2]
[346785774,1735287038675,-500.0,0.00012658,2]
[346785776,1735287038685,-500.0,0.00012658,2]
[346785778,1735287038694,-818.72,0.00012658,2]
[346785780,1735287038704,-500.0,0.00012658,2]
[346785782,1735287038714,-690.94,0.00012658,2]
[346785784,1735287038723,-1002.79,0.00012658,2]
[346785787,1735287038733,-500.0,0.00012658,2]
[346785791,1735287038743,-500.0,0.00012658,2]
[346785794,1735287038752,-500.0,0.00012658,2]
[346785796,1735287038762,-697.58,0.00012658,2]
[346785798,1735287038771,-500.0,0.00012658,2]
[346785800,1735287038781,-500.0,0.00012658,2]
[346785802,1735287038791,-956.09,0.00012658,2]
[346785804,1735287038801,-500.0,0.00012658,2]
[346785806,1735287038811,-500.0,0.00012658,2]
[346785808,1735287038820,-500.0,0.00012658,2]
[346785810,1735287038830,-500.0,0.00012658,2]
[346785812,1735287038840,-575.51,0.00012658,2]
[346785814,1735287038849,-526.52,0.00012658,2]
[346785816,1735287038859,-500.0,0.00012658,2]
[346785818,1735287038869,-988.32,0.00012658,2]
[346785820,1735287038878,-500.0,0.00012658,2]
[346785822,1735287038888,-4072.12,0.00012658,2]
[346785824,1735287038898,-1020.26,0.00012658,2]
[346785826,1735287038907,-500.0,0.00012658,2]
[346785828,1735287038916,-504.66687058,0.00012658,2]
[346785830,1735287038926,-313.88689309,0.00012658,2]
[346785832,1735287038936,-500.0,0.00012658,2]
[346785834,1735287038946,-244.08401867,0.00012658,2]
[346785836,1735287038955,-500.0,0.00012658,2]
[346785838,1735287038965,-390.49318725,0.00012658,2]
[346785840,1735287038974,-653.33,0.00012658,2]
[346785842,1735287038984,-784.5,0.00012658,2]
[346785844,1735287038995,-500.0,0.00012658,2]
[346785846,1735287039005,-1070.25,0.00012658,2]
[346785848,1735287039015,-1109.88,0.00012658,2]
[346785851,1735287039025,-500.0,0.00012658,2]
[346785853,1735287039034,-1211.49,0.00012658,2]
[346785854,1735287039045,-725.53,0.00012658,2]
[346785857,1735287039054,-500.0,0.00012658,2]
[346785859,1735287039064,-500.0,0.00012658,2]
[346785861,1735287039073,-500.0,0.00012658,2]
[346785863,1735287039087,-500.0,0.00012658,2]
[346785865,1735287039096,-500.0,0.00012658,2]
[346785866,1735287039105,-500.0,0.00012658,2]
[346785868,1735287039115,-719.6,0.00012658,2]
[346785870,1735287039124,-500.0,0.00012658,2]
[346785872,1735287039134,-500.0,0.00012658,2]
[346785874,1735287039144,-500.0,0.00012658,2]
[346785875,1735287039153,-547.42,0.00012658,2]
[346785877,1735287039163,-540.93,0.00012658,2]
[346785880,1735287039173,-500.0,0.00012658,2]
[346785882,1735287039183,-1218.76,0.00012658,2]
[346785883,1735287039197,-500.0,0.00012658,2]
[346785884,1735287039207,-501.40985999,0.00012658,2]
[346785885,1735287039216,-1379.95,0.00012658,2]
[346785886,1735287039226,-500.0,0.00012658,2]
[346785887,1735287039237,-685.67,0.00012658,2]
[346785888,1735287039247,-500.0,0.00012658,2]
[346785889,1735287039257,-500.0,0.00012658,2]
[346785890,1735287039268,-500.0,0.00012658,2]
[346785891,1735287039278,-500.0,0.00012658,2]
[346785892,1735287039288,-758.05,0.00012658,2]
[346785893,1735287039298,-500.0,0.00012658,2]
[346785894,1735287039308,-589.07,0.00012658,2]
[346785895,1735287039319,-500.0,0.00012658,2]
[346785897,1735287039331,-618.01,0.00012658,2]
[346785899,1735287039341,-500.0,0.00012658,2]
[346785901,1735287039351,-500.0,0.00012658,2]
[346785903,1735287039361,-500.0,0.00012658,2]
[346785905,1735287039371,-656.41,0.00012658,2]
[346785907,1735287039381,-877.28,0.00012658,2]
[346785909,1735287039390,-500.0,0.00012658,2]
[346785911,1735287039400,-500.0,0.00012658,2]
[346785913,1735287039411,-920.81,0.00012658,2]
[346785915,1735287039421,-500.0,0.00012658,2]
[346785917,1735287039431,-489.39994916,0.00012658,2]
[346785919,1735287039441,-514.25,0.00012658,2]
[346785921,1735287039451,-707.98,0.00012658,2]
[346785924,1735287039461,-500.0,0.00012658,2]
[346785926,1735287039471,-1025.55,0.00012658,2]
[346785928,1735287039481,-500.0,0.00012658,2]
[346785930,1735287039491,-500.0,0.00012658,2]
[346785932,1735287039501,-725.08,0.00012658,2]
[346785934,1735287039511,-500.0,0.00012658,2]
[346785936,1735287039520,-500.0,0.00012658,2]
[346785938,1735287039530,-500.0,0.00012658,2]
[346785940,1735287039540,-500.0,0.00012658,2]
[346785942,1735287039550,-500.0,0.00012658,2]
[346785944,1735287039559,-697.77,0.00012658,2]
[346785946,1735287039568,-617.01,0.00012658,2]
[346785948,1735287039581,-500.0,0.00012658,2]
[346785950,1735287039592,-500.0,0.00012658,2]
[346785952,1735287039602,-581.69,0.00012658,2]
[346785954,1735287039611,-502.5231316,0.00012658,2]
[346785956,1735287039622,-500.0,0.00012658,2]
[346785958,1735287039633,-150.0,0.00012658,2]
[346785961,1735287039643,-500.0,0.00012658,2]
[346785963,1735287039652,-500.0,0.00012658,2]
[346785965,1735287039662,-583.49574558,0.00012658,2]
[346785967,1735287039671,-500.0,0.00012658,2]
[346785969,1735287039681,-5000.0,0.00012658,2]
[346785971,1735287039692,-632.35,0.00012658,2]
[346785973,1735287039701,-500.0,0.00012658,2]
[346785975,1735287039711,-713.06,0.00012658,2]
[346785977,1735287039721,-500.0,0.00012658,2]
[346785979,1735287039730,-500.0,0.00012658,2]
[346785981,1735287039740,-500.0,0.00012658,2]
[346785983,1735287039750,-500.0,0.00012658,2]
[346785985,1735287039759,-500.0,0.00012658,2]
[346785987,1735287039769,-500.0,0.00012658,2]
[346785989,1735287039779,-500.0,0.00012658,2]
[346785991,1735287039789,-500.0,0.00012658,2]
[346785994,1735287039799,-500.0,0.00012658,2]
[346785996,1735287039809,-500.0,0.00012658,2]
[346785998,1735287039818,-500.0,0.00012658,2]
[346786000,1735287039833,-1350.48,0.00012658,2]
[346786002,1735287039843,-500.0,0.00012658,2]
[346786004,1735287039854,-500.0,0.00012658,2]
[346786006,1735287039864,-500.0,0.00012658,2]
[346786008,1735287039875,-766.37,0.00012658,2]
[346786010,1735287039885,-500.0,0.00012658,2]
[346786012,1735287039895,-500.0,0.00012658,2]
[346786014,1735287039905,-500.0,0.00012658,2]
[346786017,1735287039915,-500.0,0.00012658,2]
[346786019,1735287039925,-151.13,0.00012658,2]
[346786022,1735287039935,-500.0,0.00012659,2]
[346786024,1735287039945,-500.0,0.00012659,2]
[346786027,1735287039955,-500.0,0.00012659,2]
[346786029,1735287039965,-749.93,0.00012659,2]
[346786031,1735287039974,-706.71,0.00012659,2]
[346786033,1735287039984,-500.0,0.00012659,2]
[346786035,1735287039994,-500.0,0.00012659,2]
[346786037,1735287040004,-500.0,0.00012659,2]
[346786039,1735287040014,-1068.17,0.00012659,2]
[346786041,1735287040023,-500.0,0.00012659,2]
[346786043,1735287040033,-589.35,0.00012659,2]
[346786045,1735287040043,-699.22,0.00012659,2]
[346786047,1735287040052,-500.0,0.00012659,2]
[346786050,1735287040063,-1182.58,0.00012659,2]
[346786052,1735287040073,-793.32,0.00012659,2]
[346786054,1735287040086,-702.33,0.00012659,2]
[346786056,1735287040096,-174.13559427,0.00012659,2]
[346786058,1735287040106,-780.93,0.00012659,2]
[346786060,1735287040115,-500.0,0.00012659,2]
[346786062,1735287040125,-1191.15,0.00012659,2]
[346786064,1735287040135,-921.0,0.00012659,2]
[346786066,1735287040144,-374.1387796,0.00012659,2]
[346786068,1735287040153,-500.0,0.00012659,2]
[346786070,1735287040163,-1018.93,0.00012659,2]
[346786072,1735287040173,-953.25,0.00012659,2]
[346786074,1735287040183,-500.0,0.00012659,2]
[346786076,1735287040195,-1387.13,0.00012659,2]
[346786078,1735287040206,-500.0,0.00012659,2]
[346786080,1735287040216,-500.0,0.00012659,2]
[346786082,1735287040227,-500.0,0.00012659,2]
[346786084,1735287040238,-1450.39,0.00012659,2]
[346786086,1735287040248,-609.63,0.00012659,2]
[346786088,1735287040258,-503.98815417,0.00012659,2]
[346786091,1735287040270,-500.0,0.00012659,2]
[346786093,1735287040279,-500.0,0.00012659,2]
[346786095,1735287040289,-500.0,0.00012659,2]